fUSD/lending_fUSD_20260130
["ID","MTS","AMOUNT","RATE_DAILY","PERIOD"]
[404076429,1769790639683,-2717.89,0.00014774,2]
[404076430,1769790639693,-2717.89,0.00014821,2]
[404076431,1769790639703,-351.03,0.00014829,2]
[404076432,1769790639712,-2717.89,0.00014868,2]
[404076433,1769790639721,-2717.89,0.00014915,2]
[404076434,1769790639731,-1168.0,0.00014947,2]
[404076435,1769790639742,-191.0,0.00014947,2]
[404076436,1769790639752,-2717.89,0.00014963,2]
[404076437,1769790639762,-1787.0,0.00014977,2]
[404076438,1769790639772,-150.0,0.00014999,2]
[404076439,1769790639782,-51439.10702026,0.00015,3]
[404076440,1769790639797,-220.0,0.00015003,2]
[404076441,1769790639807,-2717.89,0.0001501,2]
[404076442,1769790639817,-284.0,0.00015033,2]
[404076443,1769790639828,-366.8299315,0.00015052,2]
[404076444,1769790639837,-2717.89,0.00015057,2]
[404076445,1769790639848,-12697.34,0.00015063,2]
[404076446,1769790639858,-268.46422622,0.000151,2]
[404076447,1769790639869,-258.16,0.00015101,2]
[404076448,1769790639882,-9999.99,0.00015101,2]
[404076449,1769790639896,-150.99,0.00015101,2]
[404076450,1769790639907,-4791.71,0.00015101,2]
[404076451,1769790639916,-2717.89,0.00015104,2]
[404076452,1769790639926,-892.81,0.00015147,2]
[404076453,1769790639935,-2717.89,0.00015151,2]
[404076454,1769790639945,-2717.89,0.00015198,2]
[404076455,1769790639955,-22715.8878,0.00015239,2]
[404076456,1769790639964,-2717.89,0.00015245,2]
[404076457,1769790639974,-2717.89,0.00015292,2]
[404076458,1769790639984,-2717.89,0.0001534,2]
[404076459,1769790639993,-4877.21,0.00015366,2]
[404076460,1769790640003,-2717.89,0.00015387,2]
[404076461,1769790640013,-166.66,0.00015415,2]
[404076462,1769790640024,-2717.89,0.00015434,2]
[404076463,1769790640034,-2717.89,0.00015481,2]
[404076464,1769790640044,-2717.89,0.00015528,2]
[404076465,1769790640054,-2717.89,0.00015575,2]
[404076466,1769790640064,-287.0812,0.0001558,2]
[404076467,1769790640075,-500.0,0.00015602,2]
[404076468,1769790640084,-150.0,0.00015602,2]
[404076469,1769790640093,-150.0,0.00015602,2]
[404076470,1769790640103,-500.0,0.00015602,2]
[404076471,1769790640112,-150.0,0.00015602,2]
[404076472,1769790640122,-500.0,0.00015602,2]
[404076473,1769790640131,-500.0,0.00015602,2]
[404076474,1769790640144,-150.0,0.00015602,2]
[404076475,1769790640153,-500.0,0.00015602,2]
[404076477,1769790640163,-150.0,0.00015602,2]
[404076478,1769790640172,-500.0,0.00015602,2]
[404076479,1769790640181,-150.0,0.00015602,2]
[404076480,1769790640190,-500.0,0.00015602,2]
[404076481,1769790640200,-500.0,0.00015602,2]
[404076482,1769790640209,-150.0,0.00015602,2]
[404076484,1769790640218,-500.0,0.00015602,2]
[404076486,1769790640228,-500.0,0.00015602,2]
[404076488,1769790640237,-150.0,0.00015602,2]
[404076490,1769790640247,-150.0,0.00015602,2]
[404076492,1769790640257,-2717.89,0.00015622,2]
[404076493,1769790640266,-150.8141651,0.00015657,2]
[404076494,1769790640281,-150.0,0.00015657,2]
[404076495,1769790640290,-500.0,0.00015657,2]
[404076496,1769790640299,-150.0,0.00015657,2]
[404076497,1769790640309,-500.0,0.00015657,2]
[404076498,1769790640319,-500.0,0.00015657,2]
[404076499,1769790640329,-150.0,0.00015657,2]
[404076500,1769790640339,-500.0,0.00015657,2]
[404076501,1769790640349,-150.0,0.00015657,2]
[404076502,1769790640358,-500.0,0.00015657,2]
[404076503,1769790640369,-500.0,0.00015657,2]
[404076504,1769790640378,-500.0,0.00015657,2]
[404076505,1769790640391,-150.0,0.00015657,2]
[404076506,1769790640400,-500.0,0.00015657,2]
[404076507,1769790640410,-500.0,0.00015657,2]
[404076508,1769790640420,-2717.89,0.00015669,2]
[404076509,1769790640430,-150.0,0.00015712,2]
[404076510,1769790640439,-353.73724505,0.00015712,2]
[404076511,1769790640448,-150.0,0.00015712,2]
[404076512,1769790640458,-500.0,0.00015712,2]
[404076513,1769790640468,-500.0,0.00015712,2]
[404076514,1769790640479,-150.0,0.00015712,2]
[404076515,1769790640489,-500.0,0.00015712,2]
[404076516,1769790640499,-150.0,0.00015712,2]
[404076517,1769790640510,-500.0,0.00015712,2]
[404076518,1769790640519,-500.0,0.00015712,2]
[404076519,1769790640530,-500.0,0.00015712,2]
[404076520,1769790640540,-200.0,0.00015712,2]
[404076521,1769790640550,-500.0,0.00015712,2]
[404076522,1769790640559,-500.0,0.00015712,2]
[404076523,1769790640568,-2500.0,0.00015752,2]
[404076524,1769790640578,-150.0,0.00015753,2]
[404076525,1769790640587,-299.99,0.00015753,2]
[404076526,1769790640596,-9999.99,0.00015753,2]
[404076527,1769790640606,-13863.58962109,0.00015758,2]
[404076528,1769790640615,-2909.95590277,0.00015758,2]
[404076529,1769790640624,-150.0,0.00015766,2]
[404076530,1769790640633,-500.0,0.00015766,2]
[404076531,1769790640644,-500.0,0.00015766,2]
[404076532,1769790640654,-150.0,0.00015766,2]
[404076533,1769790640667,-500.0,0.00015766,2]
[404076534,1769790640677,-150.0,0.00015766,2]
[404076535,1769790640687,-203.60967763,0.00015766,2]
[404076536,1769790640697,-500.0,0.00015766,2]
[404076537,1769790640707,-500.0,0.00015766,2]
[404076538,1769790640716,-500.0,0.00015766,2]
[404076539,1769790640726,-500.0,0.00015766,2]
[404076540,1769790640736,-150.0,0.00015775,2]
[404076541,1769790640746,-500.0,0.00015775,2]
[404076542,1769790640755,-500.0,0.00015775,2]
[404076543,1769790640765,-150.0,0.00015821,2]
[404076544,1769790640775,-500.0,0.00015821,2]
[404076545,1769790640784,-500.0,0.00015821,2]
[404076546,1769790640795,-280.11730134,0.00015821,2]
[404076547,1769790640805,-500.0,0.00015821,2]
[404076548,1769790640815,-150.0,0.00015821,2]
[404076549,1769790640825,-500.0,0.00015821,2]
[404076550,1769790640835,-500.0,0.00015821,2]
[404076551,1769790640847,-500.0,0.00015821,2]
[404076552,1769790640857,-500.0,0.00015821,2]
[404076553,1769790640867,-1680.0,0.00015828,2]
[404076554,1769790640957,-150.0,0.0001583,2]
[404076555,1769790640968,-500.0,0.0001583,2]
[404076556,1769790640977,-500.0,0.0001583,2]
[404076557,1769790640987,-205.0,0.00015836,2]
[404076558,1769790640997,-383.73447684,0.00015845,2]
[404076559,1769790641007,-690.72205831,0.00015845,2]
[404076560,1769790641016,-183.89138705,0.00015851,2]
[404076561,1769790641026,-545.05520411,0.00015851,2]
[404076562,1769790641035,-262347.1866,0.00015852,2]
[404076563,1769790641045,-1242.42372204,0.00015858,2]
[404076564,1769790641054,-892.81,0.00015868,2]
[404076565,1769790641064,-200.0,0.00015876,2]
[404076566,1769790641073,-500.0,0.00015876,2]
[404076567,1769790641082,-572.0,0.00015876,2]
[404076568,1769790641092,-351.8353746,0.00015876,2]
[404076569,1769790641101,-171.51596019,0.00015876,2]
[404076570,1769790641110,-500.0,0.00015876,2]
[404076571,1769790641120,-500.0,0.00015876,2]
[404076572,1769790641129,-500.0,0.00015876,2]
[404076573,1769790641138,-500.0,0.00015876,2]
[404076574,1769790641149,-500.0,0.00015885,2]
[404076575,1769790641158,-500.0,0.00015885,2]
[404076576,1769790641168,-513.19605426,0.000159,2]
[404076577,1769790641177,-250.0,0.00015908,2]
[404076578,1769790641187,-166.66,0.00015924,2]
[404076579,1769790641196,-500.0,0.00015931,2]
[404076580,1769790641205,-500.0,0.00015931,2]
[404076581,1769790641215,-268.77195069,0.00015931,2]
[404076582,1769790641223,-500.0,0.00015931,2]
[404076583,1769790641234,-215.78291863,0.00015931,2]
[404076584,1769790641243,-500.0,0.00015939,2]
[404076585,1769790641253,-500.0,0.00015939,2]
[404076586,1769790641262,-258.16,0.0001594,2]
[404076587,1769790641272,-200.0,0.00015942,2]
[404076588,1769790641281,-151.0,0.00015942,2]
[404076589,1769790641291,-151.0,0.00015942,2]
[404076590,1769790641300,-151.0,0.00015942,2]
[404076591,1769790641309,-151.0,0.00015942,2]
[404076592,1769790641319,-151.0,0.00015942,2]
[404076593,1769790641328,-151.0,0.00015942,2]
[404076594,1769790641338,-151.0,0.00015942,2]
[404076595,1769790641347,-200.0,0.00015942,2]
[404076596,1769790641357,-151.0,0.00015942,2]
[404076597,1769790641366,-151.0,0.00015942,2]
[404076598,1769790641376,-151.0,0.00015942,2]
[404076599,1769790641385,-151.0,0.00015942,2]
[404076600,1769790641397,-500.0,0.00015942,2]
[404076601,1769790641406,-4571.7758,0.0001595,2]
[404076602,1769790641416,-652.99854233,0.0001596,2]
[404076603,1769790641426,-500.0,0.00015986,2]
[404076604,1769790641435,-500.0,0.00015986,2]
[404076605,1769790641445,-249.32315519,0.00015986,2]
[404076606,1769790641455,-500.0,0.00015994,2]
[404076607,1769790641464,-500.0,0.00015994,2]
[404076608,1769790641474,-13863.58962101,0.00015996,2]
[404076609,1769790641483,-223.6899003,0.00016,2]
[404076610,1769790641492,-156808.32490037,0.00016,4]
[404076611,1769790641502,-500.0,0.00016,2]
[404076612,1769790641511,-4475.0788,0.00016027,2]
[404076613,1769790641521,-500.0,0.0001604,2]
[404076614,1769790641530,-500.0,0.0001604,2]
[404076615,1769790641540,-292.6,0.00016046,2]
[404076616,1769790641549,-500.0,0.00016049,2]
[404076617,1769790641558,-500.0,0.00016049,2]
[404076618,1769790641568,-500.0,0.00016049,2]
[404076619,1769790641578,-500.0,0.00016049,2]
[404076620,1769790641587,-500.0,0.00016049,2]
[404076621,1769790641596,-500.0,0.00016049,2]
[404076622,1769790641606,-500.0,0.00016049,2]
[404076623,1769790641615,-500.0,0.00016049,2]
[404076624,1769790641625,-500.0,0.00016049,2]
[404076625,1769790641635,-500.0,0.00016049,2]
[404076626,1769790641646,-500.0,0.00016049,2]
[404076627,1769790641655,-326.00819699,0.00016049,2]
[404076628,1769790641664,-500.0,0.00016049,2]
[404076629,1769790641674,-500.0,0.00016049,2]
[404076630,1769790641684,-500.0,0.00016049,2]
[404076631,1769790641694,-500.0,0.00016049,2]
[404076632,1769790641704,-500.0,0.00016049,2]
[404076633,1769790641714,-518.22564834,0.00016049,2]
[404076634,1769790641723,-500.0,0.00016049,2]
[404076635,1769790641735,-500.0,0.00016049,2]
[404076636,1769790641745,-500.0,0.00016049,2]
[404076637,1769790641754,-244.79656408,0.00016049,2]
[404076638,1769790641764,-500.0,0.00016049,2]
[404076639,1769790641773,-500.0,0.00016049,2]
[404076640,1769790641783,-500.0,0.00016049,2]
[404076641,1769790641796,-500.0,0.00016049,2]
[404076642,1769790641806,-500.0,0.00016049,2]
[404076643,1769790641816,-396.00925811,0.00016049,2]
[404076644,1769790641827,-500.0,0.00016049,2]
[404076645,1769790641836,-500.0,0.00016049,2]
[404076646,1769790641845,-500.0,0.00016049,2]
[404076647,1769790641855,-500.0,0.00016049,2]
[404076648,1769790641864,-500.0,0.00016049,2]
[404076649,1769790641874,-500.0,0.00016049,2]
[404076650,1769790641883,-500.0,0.00016049,2]
[404076651,1769790641895,-500.0,0.00016049,2]
[404076652,1769790641904,-224.10392643,0.00016049,2]
[404076653,1769790641913,-420.37327916,0.00016049,2]
[404076654,1769790641922,-500.0,0.00016049,2]
[404076655,1769790641932,-500.0,0.00016049,2]
[404076656,1769790641941,-500.0,0.00016049,2]
[404076657,1769790641952,-500.0,0.00016049,2]
[404076658,1769790641963,-500.0,0.00016049,2]
[404076659,1769790641972,-500.0,0.00016049,2]
[404076660,1769790641982,-500.0,0.00016049,2]
[404076661,1769790641992,-500.0,0.00016049,2]
[404076662,1769790642002,-326.5559361,0.00016049,2]
[404076663,1769790642013,-1000.0,0.00016052,2]
[404076664,1769790642022,-2909.95590277,0.00016064,2]
[404076665,1769790642032,-404.25101827,0.00016095,2]
[404076666,1769790642041,-500.0,0.00016095,2]
[404076667,1769790642050,-150.67479101,0.00016099,2]
[404076668,1769790642059,-150.0,0.00016099,2]
[404076669,1769790642069,-150.0,0.00016099,2]
[404076670,1769790642078,-500.0,0.00016099,2]
[404076671,1769790642087,-500.0,0.00016099,2]
[404076672,1769790642096,-500.0,0.00016104,2]
[404076673,1769790642106,-500.0,0.00016104,2]
[404076674,1769790642116,-3404.72,0.00016116,2]
[404076675,1769790642126,-255.0,0.00016124,2]
[404076676,1769790642135,-463.0,0.00016137,2]
[404076677,1769790642147,-179.11725287,0.0001615,2]
[404076678,1769790642156,-150.0,0.00016154,2]
[404076679,1769790642165,-572.18032737,0.00016154,2]
[404076680,1769790642180,-500.0,0.00016154,2]
[404076681,1769790642194,-500.0,0.00016159,2]
[404076682,1769790642204,-500.0,0.00016159,2]
[404076683,1769790642214,-157.5,0.00016171,2]
[404076684,1769790642224,-5000.00027676,0.000162,5]
[404076686,1769790642234,-150.0,0.00016209,2]
[404076688,1769790642243,-500.0,0.00016209,2]
[404076689,1769790642252,-500.0,0.00016213,2]
[404076690,1769790642262,-500.0,0.00016213,2]
[404076691,1769790642271,-13863.58962101,0.00016234,2]
[404076692,1769790642280,-150.0,0.00016263,2]
[404076693,1769790642289,-150.0,0.00016263,2]
[404076694,1769790642298,-500.0,0.00016268,2]
[404076695,1769790642308,-500.0,0.00016268,2]
[404076696,1769790642317,-150.0,0.00016318,2]
[404076697,1769790642326,-500.0,0.00016323,2]
[404076698,1769790642335,-500.0,0.00016323,2]
[404076699,1769790642344,-2909.95590277,0.0001637,2]
[404076700,1769790642353,-500.0,0.00016372,2]
[404076701,1769790642362,-500.0,0.00016372,2]
[404076702,1769790642371,-500.0,0.00016373,2]
[404076703,1769790642380,-500.0,0.00016373,2]
[404076704,1769790642391,-500.0,0.00016373,2]
[404076705,1769790642400,-500.0,0.00016373,2]
[404076706,1769790642410,-500.0,0.00016373,2]
[404076707,1769790642419,-177.64323639,0.00016373,2]
[404076708,1769790642429,-500.0,0.00016373,2]
[404076709,1769790642438,-225.37911043,0.00016373,2]
[404076710,1769790642448,-500.0,0.00016373,2]
[404076711,1769790642457,-568.87365999,0.00016373,2]
[404076712,1769790642466,-500.0,0.00016373,2]
[404076713,1769790642475,-160.32431704,0.00016373,2]
[404076714,1769790642485,-160.21943413,0.00016373,2]
[404076715,1769790642494,-500.0,0.00016373,2]
[404076716,1769790642503,-500.0,0.00016373,2]
[404076717,1769790642513,-500.0,0.00016373,2]
[404076718,1769790642522,-500.0,0.00016373,2]
[404076719,1769790642531,-500.0,0.00016373,2]
[404076720,1769790642541,-500.0,0.00016373,2]
[404076721,1769790642550,-163.00594696,0.00016373,2]
[404076722,1769790642559,-500.0,0.00016373,2]
[404076723,1769790642568,-239.55126374,0.00016373,2]
[404076724,1769790642577,-217.57575976,0.00016373,2]
[404076725,1769790642587,-166.21493216,0.00016373,2]
[404076726,1769790642596,-500.0,0.00016373,2]
[404076727,1769790642605,-500.0,0.00016373,2]
[404076728,1769790642615,-500.0,0.00016373,2]
[404076729,1769790642624,-500.0,0.00016373,2]
[404076730,1769790642633,-558.9380785,0.00016373,2]
[404076731,1769790642644,-500.0,0.00016373,2]
[404076732,1769790642654,-164.62391136,0.00016373,2]
[404076733,1769790642663,-160.21744138,0.00016373,2]
[404076734,1769790642673,-500.0,0.00016373,2]
[404076735,1769790642683,-500.0,0.00016373,2]
[404076736,1769790642692,-500.0,0.00016373,2]
[404076737,1769790642702,-500.0,0.00016373,2]
[404076738,1769790642712,-500.0,0.00016373,2]
[404076739,1769790642725,-500.60369246,0.00016373,2]
[404076740,1769790642735,-500.0,0.00016373,2]
[404076741,1769790642745,-500.0,0.00016373,2]
[404076742,1769790642755,-500.0,0.00016373,2]
[404076743,1769790642764,-503.15498018,0.00016373,2]
[404076744,1769790642774,-500.0,0.00016373,2]
[404076745,1769790642783,-500.0,0.00016373,2]
[404076746,1769790642794,-500.0,0.00016373,2]
[404076747,1769790642804,-500.0,0.00016373,2]
[404076748,1769790642813,-169.60462217,0.00016373,2]
[404076749,1769790642822,-500.0,0.00016373,2]
[404076750,1769790642833,-500.0,0.00016373,2]
[404076751,1769790642842,-500.0,0.00016373,2]
[404076752,1769790642852,-250.0,0.00016373,2]
[404076753,1769790642863,-992.73,0.00016373,2]
[404076754,1769790642874,-500.0,0.00016378,2]
[404076755,1769790642884,-500.0,0.00016378,2]
[404076756,1769790642894,-929.0,0.00016417,2]
[404076757,1769790642903,-500.0,0.00016433,2]
[404076758,1769790642913,-189.75735068,0.00016433,2]
[404076759,1769790642922,-166.66,0.00016433,2]
[404076760,1769790642932,-2000.0,0.00016438,2]
[404076761,1769790642942,-500.0,0.00016438,2]
[404076762,1769790642951,-500.0,0.00016438,2]
[404076763,1769790642960,-355.69824752,0.00016438,2]
[404076764,1769790642969,-500.0,0.00016438,2]
[404076765,1769790642979,-500.0,0.00016438,2]
[404076766,1769790642988,-500.0,0.00016438,2]
[404076767,1769790642998,-500.0,0.00016438,2]
[404076768,1769790643008,-503.60266732,0.00016438,2]
[404076769,1769790643018,-500.0,0.00016438,2]
[404076770,1769790643027,-500.0,0.00016438,2]
[404076771,1769790643036,-500.0,0.00016438,2]
[404076772,1769790643046,-500.0,0.00016438,2]
[404076773,1769790643057,-500.0,0.00016438,2]
[404076774,1769790643066,-500.0,0.00016438,2]
[404076775,1769790643076,-500.0,0.00016438,2]
[404076776,1769790643085,-13863.58962101,0.00016472,2]
[404076777,1769790643095,-772.81,0.00016482,2]
[404076778,1769790643104,-500.0,0.00016487,2]
[404076779,1769790643113,-244.43530043,0.0001649,2]
[404076780,1769790643126,-567.0,0.00016542,2]
[404076781,1769790643135,-892.81,0.0001659,2]
[404076782,1769790643145,-992.73,0.00016647,2]
[404076783,1769790643155,-13863.58962101,0.0001671,2]
[404076784,1769790643164,-165.61,0.00016712,2]
[404076785,1769790643174,-772.81,0.00016756,2]
[404076786,1769790643183,-258.16,0.00016779,2]
[404076787,1769790643193,-171.94134402,0.00016821,2]
[404076788,1769790643203,-503.09870012,0.00016921,2]
[404076789,1769790643212,-500.0,0.00016921,2]
[404076790,1769790643222,-500.86269689,0.00016921,2]
[404076791,1769790643231,-500.4902994,0.00016921,2]
[404076792,1769790643241,-1000.0,0.00016921,2]
[404076793,1769790643250,-504.68661395,0.00016921,2]
[404076794,1769790643259,-1000.0,0.00016921,2]
[404076795,1769790643268,-1000.0,0.00016921,2]
[404076796,1769790643277,-203.98074386,0.00016921,2]
[404076797,1769790643287,-1000.0,0.00016921,2]
[404076798,1769790643296,-1000.0,0.00016921,2]
[404076799,1769790643305,-1000.0,0.00016921,2]
[404076800,1769790643315,-500.0,0.00016921,2]
[404076801,1769790643325,-1000.0,0.00016921,2]
[404076802,1769790643334,-1000.0,0.00016921,2]
[404076803,1769790643344,-1000.0,0.00016921,2]
[404076804,1769790643353,-1000.0,0.00016921,2]
[404076805,1769790643363,-541.28684359,0.00016921,2]
[404076806,1769790643372,-1000.0,0.00016921,2]
[404076808,1769790643382,-1000.0,0.00016921,2]
[404076809,1769790643393,-877.26188408,0.00016921,2]
[404076811,1769790643403,-401.53067419,0.00016921,2]
[404076812,1769790643412,-804.05633745,0.00016921,2]
[404076813,1769790643422,-1000.81154381,0.00016921,2]
[404076814,1769790643432,-490.28446551,0.00016921,2]
[404076815,1769790643441,-1000.91709451,0.00016921,2]
[404076816,1769790643450,-1000.0,0.00016921,2]
[404076817,1769790643460,-1000.79205538,0.00016921,2]
[404076819,1769790643469,-459.6118856,0.00016921,2]
[404076821,1769790643479,-1009.36195064,0.00016921,2]
[404076823,1769790643489,-1000.0,0.00016921,2]
[404076825,1769790643498,-1000.28855452,0.00016921,2]
[404076827,1769790643508,-1000.0,0.00016921,2]
[404076829,1769790643517,-1000.0,0.00016921,2]
[404076832,1769790643527,-992.73,0.00016921,2]
[404076834,1769790643536,-351.03,0.00016937,2]
[404076836,1769790643546,-166.66,0.00016942,2]
[404076838,1769790643555,-13863.58962101,0.00016948,2]
[404076840,1769790643565,-200.0,0.00016983,2]
[404076842,1769790643574,-250.0,0.00017,2]
[404076844,1769790643583,-263.4,0.00017,2]
[404076845,1769790643593,-16166.05353687,0.00017,2]
[404076846,1769790643604,-2387.52939455,0.00017,2]
[404076847,1769790643615,-772.81,0.0001703,2]
[404076848,1769790643626,-163.0,0.0001704,2]
[404076849,1769790643636,-13863.58962101,0.00017186,2]
[404076850,1769790643651,-992.73,0.00017195,2]
[404076851,1769790643661,-772.81,0.00017304,2]
[404076852,1769790643672,-892.81,0.00017311,2]
[404076853,1769790643682,-933.99864247,0.00017338,2]
[404076854,1769790643692,-433.0,0.00017339,2]
[404076855,1769790643701,-165.0,0.0001736,2]
[404076856,1769790643711,-4935.459,0.000174,2]
[404076857,1769790643720,-374.746,0.000174,2]
[404076858,1769790643730,-2351.0,0.00017411,2]
[404076859,1769790643739,-166.66,0.00017451,2]
[404076860,1769790643749,-992.73,0.00017468,2]
[404076861,1769790643759,-580.80754144,0.00017468,2]
[404076862,1769790643768,-1505.10384072,0.00017468,2]
[404076863,1769790643778,-1500.0,0.00017468,2]
[404076864,1769790643790,-377.4,0.00017468,2]
[404076865,1769790643804,-1000.8272521,0.00017468,2]
[404076866,1769790643814,-656.65111135,0.00017468,2]
[404076867,1769790643824,-1500.0,0.00017468,2]
[404076868,1769790643835,-1000.71065871,0.00017468,2]
[404076869,1769790643844,-1500.0,0.00017468,2]
[404076870,1769790643854,-1500.0,0.00017468,2]
[404076871,1769790643865,-1000.73878486,0.00017468,2]
[404076872,1769790643875,-206.11887871,0.00017468,2]
[404076873,1769790643884,-1500.0,0.00017468,2]
[404076874,1769790643895,-1500.0,0.00017468,2]
[404076875,1769790643905,-1500.0,0.00017468,2]
[404076876,1769790643915,-5596.0,0.00017551,2]
[404076877,1769790643924,-772.81,0.00017578,2]
[404076878,1769790643934,-5596.0,0.00017598,2]
[404076879,1769790643943,-258.16,0.00017618,2]
[404076880,1769790643954,-500.0,0.00017644,2]
[404076881,1769790643965,-1459.48,0.0001768,2]
[404076882,1769790643974,-351.03,0.00017715,2]
[404076883,1769790643985,-992.73,0.00017742,2]
[404076884,1769790643995,-158.82094085,0.00017771,2]
[404076885,1769790644005,-256.0,0.0001778,2]
[404076886,1769790644015,-5596.0,0.00017789,2]
[404076887,1769790644024,-500.0,0.00017808,2]
[404076888,1769790644034,-109605.83836455,0.0001783,2]
[404076889,1769790644043,-772.81,0.00017852,2]
[404076890,1769790644052,-500.0,0.00017863,2]
[404076891,1769790644062,-235.48882472,0.00017886,2]
[404076892,1769790644073,-4980.65127795,0.00017886,2]
[404076893,1769790644084,-171.94134402,0.00017886,2]
[404076894,1769790644094,-4980.65127791,0.00017889,2]
[404076895,1769790644105,-4980.65127791,0.00017892,2]
[404076896,1769790644116,-235.48882472,0.00017893,2]
[404076897,1769790644126,-4980.65127791,0.00017894,2]
[404076898,1769790644136,-4980.65127791,0.00017897,2]
[404076899,1769790644148,-933.99864247,0.000179,2]
[404076900,1769790644157,-438.37248688,0.000179,2]
[404076901,1769790644167,-1000.0,0.000179,2]
[404076902,1769790644176,-10000.0,0.000179,2]
[404076903,1769790644186,-235.48882472,0.000179,2]
[404076904,1769790644195,-24418.68134387,0.000179,2]
[404076905,1769790644206,-4980.65127791,0.000179,2]
[404076906,1769790644215,-1483.00304431,0.000179,2]
[404076907,1769790644223,-496.52872368,0.000179,3]
[404076908,1769790644231,-16649.02521501,0.000179,2]
[404076909,1769790644239,-2814.99303648,0.000179,2]
[404076910,1769790644248,-7428.81116082,0.000179,2]
[404076911,1769790644258,-13105.30345281,0.000179,2]
[404076912,1769790644268,-19604.75018869,0.000179,2]
[404076913,1769790644279,-26525.9214,0.000179,2]
[404076914,1769790644290,-159.03805157,0.00017912,2]
[404076915,1769790644299,-500.0,0.00017918,2]
[404076916,1769790644310,-5596.0,0.00017922,2]
[404076917,1769790644319,-331.0,0.00017928,2]
[404076918,1769790644328,-166.66,0.0001796,2]
[404076919,1769790644338,-153.53,0.00017963,2]
[404076920,1769790644347,-500.0,0.00017972,2]
[404076921,1769790644357,-500.0,0.00017973,2]
[404076922,1769790644366,-500.0,0.00017973,2]
[404076923,1769790644375,-500.0,0.00017973,2]
[404076924,1769790644385,-500.0,0.00017973,2]
[404076925,1769790644397,-160.11295309,0.00017973,2]
[404076926,1769790644407,-333.51196878,0.00017973,2]
[404076927,1769790644418,-500.78976485,0.00017973,2]
[404076928,1769790644428,-501.03562757,0.00017973,2]
[404076929,1769790644438,-340.31348241,0.00017973,2]
[404076930,1769790644448,-500.0,0.00017973,2]
[404076931,1769790644459,-500.0,0.00017973,2]
[404076932,1769790644470,-500.0,0.00017973,2]
[404076933,1769790644480,-500.0,0.00017973,2]
[404076934,1769790644491,-500.0,0.00017973,2]
[404076935,1769790644502,-500.0,0.00017973,2]
[404076936,1769790644512,-500.0,0.00017973,2]
[404076937,1769790644522,-500.0,0.00017973,2]
[404076938,1769790644532,-150.0,0.00017973,2]
[404076939,1769790644541,-163.36858583,0.00017973,2]
[404076940,1769790644551,-500.0,0.00017973,2]
[404076941,1769790644560,-500.0,0.00017973,2]
[404076942,1769790644570,-175.57287607,0.00017973,2]
[404076943,1769790644580,-500.0,0.00017973,2]
[404076944,1769790644591,-500.0,0.00017973,2]
[404076945,1769790644603,-500.0,0.00017973,2]
[404076946,1769790644612,-500.63516671,0.00017973,2]
[404076947,1769790644622,-500.0,0.00017973,2]
[404076948,1769790644632,-500.0,0.00017973,2]
[404076949,1769790644642,-151.06501544,0.00017973,2]
[404076950,1769790644652,-500.0,0.00017973,2]
[404076951,1769790644662,-500.0,0.00017973,2]
[404076952,1769790644671,-500.0,0.00017973,2]